fUSD/lending_fUSD_20240829
["ID","MTS","AMOUNT","RATE_DAILY","PERIOD"]
[336580380,1724953862216,-500.0,0.00024931,4]
[336580381,1724953862229,-1037.65,0.00024931,4]
[336580382,1724953862239,-500.0,0.00024931,4]
[336580383,1724953862248,-1037.65,0.00024931,4]
[336580384,1724953862258,-500.0,0.00024931,4]
[336580385,1724953862267,-1037.65,0.00024931,4]
[336580386,1724953862278,-500.0,0.00024931,4]
[336580387,1724953862288,-500.0,0.00024931,4]
[336580388,1724953862299,-1037.65,0.00024931,4]
[336580389,1724953862311,-1037.65,0.00024931,4]
[336580390,1724953862323,-500.0,0.00024931,4]
[336580391,1724953862333,-1037.65,0.00024931,4]
[336580392,1724953862342,-1037.65,0.00024931,4]
[336580393,1724953862352,-1037.65,0.00024931,4]
[336580394,1724953862361,-500.0,0.00024931,4]
[336580395,1724953862372,-1037.65,0.00024931,4]
[336580396,1724953862382,-500.0,0.00024931,4]
[336580397,1724953862392,-1037.65,0.00024931,4]
[336580398,1724953862401,-500.0,0.00024931,4]
[336580399,1724953862410,-1037.65,0.00024931,4]
[336580400,1724953862420,-500.0,0.00024931,4]
[336580401,1724953862429,-500.0,0.00024931,4]
[336580402,1724953862439,-1037.65,0.00024931,4]
[336580403,1724953862449,-500.0,0.00024931,4]
[336580404,1724953862458,-1037.65,0.00024931,4]
[336580405,1724953862467,-500.0,0.00024931,4]
[336580406,1724953862477,-233.19414479,0.00024931,4]
[336580407,1724953862487,-500.0,0.00024931,4]
[336580408,1724953862496,-1037.78505519,0.00024931,4]
[336580409,1724953862505,-500.0,0.00024931,4]
[336580410,1724953862515,-500.0,0.00024931,4]
[336580411,1724953862524,-500.0,0.00024931,4]
[336580412,1724953862534,-500.0,0.00024931,4]
[336580413,1724953862543,-500.0,0.00024931,4]
[336580414,1724953862553,-500.0,0.00024931,4]
[336580415,1724953862565,-500.0,0.00024931,4]
[336580416,1724953862575,-500.0,0.00024931,4]
[336580417,1724953862584,-500.0,0.00024931,4]
[336580418,1724953862593,-500.0,0.00024931,4]
[336580419,1724953862602,-500.0,0.00024931,4]
[336580420,1724953862611,-500.0,0.00024931,4]
[336580421,1724953862620,-500.0,0.00024931,4]
[336580422,1724953862630,-500.0,0.00024931,4]
[336580423,1724953862639,-500.0,0.00024931,4]
[336580424,1724953862648,-500.0,0.00024931,4]
[336580425,1724953862657,-500.0,0.00024931,4]
[336580426,1724953862666,-500.0,0.00024931,4]
[336580427,1724953862675,-500.0,0.00024931,4]
[336580428,1724953862685,-500.0,0.00024931,4]
[336580429,1724953862695,-500.0,0.00024931,4]
[336580430,1724953862705,-500.0,0.00024931,4]
[336580431,1724953862715,-500.0,0.00024931,4]
[336580432,1724953862724,-367.65323084,0.00024931,4]
[336580433,1724953862734,-323.13689927,0.00024931,4]
[336580434,1724953862744,-500.0,0.00024931,30]
[336580435,1724953862830,-1927.52,0.00024931,4]
[336580436,1724953862839,-1927.52,0.00024931,4]
[336580437,1724953862848,-1927.52,0.00024931,4]
[336580438,1724953862858,-1927.52,0.00024931,4]
[336580439,1724953862868,-1927.52,0.00024931,4]
[336580440,1724953862878,-1927.52,0.00024931,4]
[336580441,1724953862888,-1927.52,0.00024931,4]
[336580442,1724953862897,-500.0,0.00024931,4]
[336580443,1724953862906,-1927.52,0.00024931,4]
[336580444,1724953862916,-500.0,0.00024931,4]
[336580445,1724953862927,-1927.52,0.00024931,4]
[336580446,1724953862937,-500.0,0.00024931,4]
[336580447,1724953862947,-1927.52,0.00024931,4]
[336580448,1724953862957,-372.44971522,0.00024931,4]
[336580449,1724953862968,-1927.52,0.00024931,4]
[336580450,1724953862977,-1927.52,0.00024931,4]
[336580451,1724953862986,-1927.52,0.00024931,4]
[336580452,1724953862995,-1927.52,0.00024931,4]
[336580453,1724953863004,-1927.52,0.00024931,4]
[336580454,1724953863014,-1927.52,0.00024931,4]
[336580455,1724953863023,-653.5,0.00024931,4]
[336580456,1724953863033,-1927.52,0.00024931,4]
[336580457,1724953863042,-653.5,0.00024931,4]
[336580458,1724953863051,-1927.52,0.00024931,4]
[336580459,1724953863061,-653.5,0.00024931,4]
[336580460,1724953863070,-1927.52,0.00024931,4]
[336580461,1724953863079,-653.5,0.00024931,4]
[336580462,1724953863089,-1927.52,0.00024931,4]
[336580463,1724953863098,-653.5,0.00024931,4]
[336580464,1724953863107,-1927.52,0.00024931,4]
[336580465,1724953863118,-653.5,0.00024931,4]
[336580466,1724953863128,-1927.52,0.00024931,4]
[336580467,1724953863137,-653.5,0.00024931,4]
[336580468,1724953863146,-1927.52,0.00024931,4]
[336580469,1724953863156,-653.5,0.00024931,4]
[336580470,1724953863165,-1927.63306417,0.00024931,4]
[336580471,1724953863174,-653.5,0.00024931,4]
[336580472,1724953863184,-653.5,0.00024931,4]
[336580473,1724953863194,-653.5,0.00024931,4]
[336580474,1724953863203,-653.5,0.00024931,4]
[336580475,1724953863213,-653.5,0.00024931,4]
[336580476,1724953863224,-653.5,0.00024931,4]
[336580477,1724953863234,-500.0,0.00024931,4]
[336580478,1724953863244,-3892.47,0.00024931,4]
[336580479,1724953863254,-653.5,0.00024931,4]
[336580480,1724953863264,-2115.82,0.00024931,4]
[336580481,1724953863273,-509.73437357,0.00024931,4]
[336580482,1724953863283,-3892.47,0.00024931,4]
[336580483,1724953863293,-653.5,0.00024931,4]
[336580484,1724953863304,-2115.82,0.00024931,4]
[336580485,1724953863314,-653.5,0.00024931,4]
[336580486,1724953863324,-3892.47,0.00024931,4]
[336580487,1724953863334,-509.79180195,0.00024931,4]
[336580488,1724953863344,-2115.82,0.00024931,4]
[336580489,1724953863354,-653.5,0.00024931,4]
[336580490,1724953863364,-3892.47,0.00024931,4]
[336580491,1724953863373,-653.5,0.00024931,4]
[336580492,1724953863383,-2115.82,0.00024931,4]
[336580493,1724953863393,-3892.47,0.00024931,4]
[336580494,1724953863403,-653.5,0.00024931,4]
[336580495,1724953863413,-6.42713947,0.00024931,4]
[336580496,1724953863581,-2109.39286053,0.00024931,4]
[336580497,1724953863591,-3892.47,0.00024931,4]
[336580498,1724953863600,-653.5,0.00024931,4]
[336580499,1724953863610,-2115.82,0.00024931,4]
[336580500,1724953863620,-3892.47,0.00024931,4]
[336580501,1724953863629,-653.5,0.00024931,4]
[336580502,1724953863640,-2115.82,0.00024931,4]
[336580503,1724953863650,-3892.47,0.00024931,4]
[336580504,1724953863659,-653.5,0.00024931,4]
[336580505,1724953863669,-2115.82,0.00024931,4]
[336580506,1724953863679,-3892.47,0.00024931,4]
[336580507,1724953863689,-653.50782244,0.00024931,4]
[336580508,1724953863699,-3892.47,0.00024931,4]
[336580509,1724953863709,-2115.82,0.00024931,4]
[336580510,1724953863719,-3892.47,0.00024931,4]
[336580511,1724953863729,-2115.82,0.00024931,4]
[336580512,1724953863738,-3892.47,0.00024931,4]
[336580513,1724953863748,-2115.82,0.00024931,4]
[336580514,1724953863758,-236.96513003,0.00024931,4]
[336580515,1724953863778,-399.70676628,0.00024931,4]
[336580516,1724953863790,-322.8916,0.00024931,4]
[336580517,1724953863802,-300.0,0.00024931,4]
[336580518,1724953863815,-1253.16529958,0.00024931,4]
[336580519,1724953863832,-1379.74120411,0.00024931,4]
[336580520,1724953863842,-2115.82,0.00024931,4]
[336580521,1724953863853,-3892.47,0.00024931,4]
[336580522,1724953863863,-1943.82971946,0.00024931,4]
[336580523,1724953863877,-171.99028054,0.00024931,4]
[336580524,1724953863887,-1092.80657786,0.00024931,4]
[336580525,1724953863898,-2799.66342214,0.00024931,4]
[336580526,1724953863908,-934.27600263,0.00024931,4]
[336580527,1724953863920,-1181.54399737,0.00024931,4]
[336580528,1724953863930,-3892.47,0.00024931,4]
[336580529,1724953863940,-2115.82,0.00024931,4]
[336580530,1724953863950,-3892.47,0.00024931,4]
[336580531,1724953863964,-2115.82,0.00024931,4]
[336580532,1724953863975,-3892.47,0.00024931,4]
[336580533,1724953863985,-2115.82,0.00024931,4]
[336580534,1724953863995,-3892.47,0.00024931,4]
[336580535,1724953864005,-2115.82,0.00024931,4]
[336580536,1724953864015,-3892.47,0.00024931,4]
[336580537,1724953864025,-2115.82,0.00024931,4]
[336580538,1724953864035,-3892.47,0.00024931,4]
[336580539,1724953864045,-3892.47,0.00024931,4]
[336580540,1724953864055,-2115.82,0.00024931,4]
[336580541,1724953864068,-3892.47,0.00024931,4]
[336580542,1724953864078,-2115.82,0.00024931,4]
[336580543,1724953864087,-3014.91889565,0.00024931,4]
[336580544,1724953931487,3048.43,0.000109,2]
[336580545,1724953951735,1654.8,0.00023389,120]
[336580547,1724954072278,175.51,0.00010959,2]
[336580554,1724954718123,192.75,0.00010959,2]
[336580555,1724954747306,500.0,0.00010959,2]
[336580556,1724954747735,500.0,0.00010959,2]
[336580557,1724954748052,500.0,0.00010959,2]
[336580558,1724954748354,500.0,0.00010959,2]
[336580559,1724954749012,694.0,0.00010959,2]
[336580638,1724955032558,-250.0,0.00012,2]
[336580639,1724955032568,-300.0,0.00014,2]
[336580641,1724955032577,-38.01158738,0.00014,2]
[336580644,1724955032593,-111.98841262,0.00014,2]
[336580646,1724955032603,-175.26,0.00014216,2]
[336580647,1724955032613,-12.75158738,0.00016,2]
[336580650,1724955032640,-337.24841262,0.00016,2]
[336580652,1724955032651,-175.76,0.0001777,2]
[336580654,1724955032660,-250.0,0.0001777,2]
[336580656,1724955032670,-76.20727187,0.0001777,2]
[336580657,1724955032681,-138.77272813,0.0001777,2]
[336580659,1724955032690,-460.866512,0.0001777,2]
[336580661,1724955032702,-14657.543488,0.0001777,2]
[336580663,1724955032712,-150.0,0.00019,6]
[336580665,1724955032722,-150.0,0.000195,7]
[336580667,1724955032731,-153.21,0.00019683,2]
[336580669,1724955032743,-600.0,0.00019999,2]
[336580670,1724955032752,-700.0,0.00019999,2]
[336580672,1724955032762,-499.99,0.00019999,2]
[336580674,1724955032771,-299.99,0.00019999,7]
[336580676,1724955032780,-500.0,0.00019999,2]
[336580678,1724955032790,-150.0,0.0002,7]
[336580680,1724955032799,-496.0,0.0002,2]
[336580681,1724955032809,-993.0,0.0002,2]
[336580683,1724955032818,-268.0,0.000205,8]
[336580685,1724955032827,-183.17,0.00020695,2]
[336580687,1724955032836,-1303.071494,0.00020895,2]
[336580689,1724955032846,-314.38,0.00021,2]
[336580691,1724955032855,-1005.98,0.00021,2]
[336580693,1724955032864,-287.042154,0.00021,2]
[336580694,1724955032874,-600.0,0.00021095,2]
[336580696,1724955032883,-700.0,0.00021095,2]
[336580698,1724955032892,-150.0,0.00021918,2]
[336580700,1724955032901,-150.0,0.00021969,2]
[336580702,1724955032911,-500.0,0.00022006,2]
[336580704,1724955032921,-1500.0,0.00022008,2]
[336580705,1724955032930,-1311.66,0.00022034,2]
[336580706,1724955032940,-1005.98,0.0002209,2]
[336580708,1724955032950,-250.0,0.00022104,2]
[336580710,1724955032960,-150.0,0.00022104,2]
[336580711,1724955032969,-600.0,0.00022191,2]
[336580713,1724955032978,-700.0,0.00022191,2]
[336580714,1724955032990,-314.38,0.0002227,2]
[336580715,1724955032999,-150.0,0.00022414,2]
[336580716,1724955033009,-1000.0,0.00022466,2]
[336580717,1724955033019,-4908.0,0.0002247,2]
[336580718,1724955033029,-150.0,0.00022495,2]
[336580719,1724955033039,-534.54,0.00022665,30]
[336580720,1724955033048,-400.0,0.0002267,2]
[336580721,1724955033058,-288.0,0.00022686,2]
[336580722,1724955033067,-7069.94,0.0002289,2]
[336580723,1724955033077,-183.17,0.00022959,2]
[336580724,1724955033086,-150.0,0.00023,2]
[336580725,1724955033096,-200.0,0.00023,2]
[336580726,1724955033105,-150.0,0.00023071,2]
[336580727,1724955033114,-1005.98,0.0002318,2]
[336580728,1724955033124,-180.0,0.00023205,2]
[336580729,1724955033133,-600.0,0.00023287,2]
[336580730,1724955033142,-700.0,0.00023287,2]
[336580731,1724955033152,-152.0,0.00023291,3]
[336580732,1724955033161,-186.66,0.00023389,2]
[336580733,1724955033171,-1000.0,0.000235,2]
[336580734,1724955033180,-1000.0,0.000235,2]
[336580735,1724955033259,-1000.0,0.000235,2]
[336580736,1724955033269,-1000.0,0.000235,2]
[336580737,1724955033279,-530.238744,0.0002354,2]
[336580738,1724955033288,-150.0,0.00023648,2]
[336580739,1724955033298,-100929.3075,0.0002369,2]
[336580740,1724955033307,-355.7893,0.000237,2]
[336580741,1724955033316,-1000.0,0.00023799,2]
[336580742,1724955033325,-1000.0,0.00023799,2]
[336580743,1724955033335,-1000.0,0.00023799,2]
[336580744,1724955033344,-500.0,0.00024067,2]
[336580745,1724955033354,-500.0,0.0002412,2]
[336580746,1724955033363,-800.0,0.00024153,2]
[336580747,1724955033372,-500.0,0.00024181,2]
[336580748,1724955033382,-150.0,0.00024225,2]
[336580749,1724955033391,-700.0,0.0002426,2]
[336580750,1724955033401,-500.0,0.00024269,2]
[336580751,1724955033410,-1005.98,0.0002427,2]
[336580752,1724955033420,-800.0,0.0002429,2]
[336580753,1724955033429,-500.0,0.00024311,2]
[336580754,1724955033439,-500.0,0.0002433,2]
[336580755,1724955033449,-1000.0,0.00024335,2]
[336580756,1724955033458,-500.0,0.00024346,2]
[336580757,1724955033468,-3900.0,0.00024365,2]
[336580758,1724955033477,-500.0,0.00024369,2]
[336580759,1724955033489,-600.0,0.00024383,2]
[336580760,1724955033499,-700.0,0.00024383,2]
[336580761,1724955033508,-500.0,0.0002441,2]
[336580762,1724955033517,-500.0,0.00024428,2]
[336580763,1724955033527,-500.0,0.00024524,2]
[336580764,1724955033536,-1000.0,0.0002453,2]
[336580765,1724955033546,-700.0,0.00024539,2]
[336580766,1724955033555,-500.0,0.00024559,2]
[336580767,1724955033564,-500.0,0.00024612,2]
[336580768,1724955033573,-700.0,0.00024622,2]
[336580769,1724955033583,-1286.80712,0.0002468,2]
[336580770,1724955033593,-11750.47420761,0.00024682,2]
[336580771,1724955033602,-574.32043657,0.000247,2]
[336580772,1724955033616,-500.0,0.00024776,2]
[336580773,1724955033625,-500.0,0.00024801,2]
[336580774,1724955033636,-150.0,0.00024802,2]
[336580775,1724955033646,-1000.0,0.0002485,2]
[336580776,1724955033657,-500.0,0.00024865,2]
[336580777,1724955033667,-2057.0,0.000249,2]
[336580778,1724955033676,-1000.0,0.000249,2]
[336580779,1724955033687,-1500.0,0.000249,2]
[336580780,1724955033698,-1000.0,0.000249,2]
[336580781,1724955033709,-180.0,0.000249,2]
[336580782,1724955033718,-328.0,0.000249,2]
[336580783,1724955033728,-496.0,0.000249,8]
[336580784,1724955033739,-993.0,0.000249,8]
[336580785,1724955033749,-29697.8870659,0.00024911,4]
[336580786,1724955033758,-150.84,0.00024911,2]
[336580787,1724955033768,-532.77504963,0.0002492,2]
[336580788,1724955033777,-500.0,0.0002492,2]
[336580789,1724955033787,-500.0,0.0002492,2]
[336580790,1724955033797,-500.0,0.0002492,2]
[336580791,1724955033807,-500.0,0.0002492,2]
[336580792,1724955033816,-500.0,0.0002492,2]
[336580793,1724955033826,-500.0,0.0002492,2]
[336580794,1724955033836,-500.0,0.0002492,2]
[336580795,1724955033845,-500.0,0.0002492,2]
[336580796,1724955033855,-500.0,0.0002492,2]
[336580797,1724955033864,-500.0,0.0002492,2]
[336580798,1724955033874,-500.0,0.0002492,2]
[336580799,1724955033884,-500.0,0.0002492,2]
[336580800,1724955033894,-500.0,0.0002492,2]
[336580801,1724955033904,-500.0,0.0002492,2]
[336580802,1724955033913,-494.89524016,0.0002492,2]
[336580803,1724955033923,-500.0,0.0002492,2]
[336580804,1724955033933,-500.0,0.0002492,2]
[336580805,1724955033943,-500.0,0.0002492,2]
[336580806,1724955033953,-548.75249879,0.0002492,2]
[336580807,1724955033963,-193036.265928,0.00024921,4]
[336580808,1724955033973,-163338.378862,0.00024921,4]
[336580809,1724955033984,-2500.0,0.00024928,5]
[336580810,1724955033995,-532.1415932,0.0002493,2]
[336580811,1724955034005,-205.7492841,0.0002493,2]
[336580812,1724955034016,-502.0,0.00024931,2]
[336580813,1724955034026,-475.57390425,0.00024931,2]
[336580814,1724955034037,-300.0,0.00024931,5]
[336580815,1724955034049,-500.0,0.00024931,4]
[336580816,1724955034059,-500.0,0.00024931,4]
[336580817,1724955034070,-500.0,0.00024931,4]
[336580818,1724955034080,-500.0,0.00024931,4]
[336580819,1724955034090,-500.0,0.00024931,4]
[336580820,1724955034100,-500.0,0.00024931,4]
[336580821,1724955034110,-500.0,0.00024931,4]
[336580822,1724955034119,-500.0,0.00024931,4]
[336580823,1724955034129,-500.0,0.00024931,4]
[336580824,1724955034139,-500.0,0.00024931,4]
[336580825,1724955034150,-500.0,0.00024931,4]
[336580826,1724955034160,-500.0,0.00024931,4]
[336580827,1724955034170,-500.0,0.00024931,4]
[336580828,1724955034180,-500.0,0.00024931,4]
[336580829,1724955034191,-378.88047814,0.00024931,4]
[336580830,1724955034200,-500.0,0.00024931,4]
[336580831,1724955034210,-500.0,0.00024931,4]
[336580832,1724955034220,-500.0,0.00024931,4]
[336580833,1724955034229,-500.0,0.00024931,4]
[336580834,1724955034241,-500.0,0.00024931,4]
[336580835,1724955034251,-500.0,0.00024931,4]
[336580836,1724955034261,-500.0,0.00024931,4]
[336580837,1724955034271,-500.0,0.00024931,4]
[336580838,1724955034281,-500.0,0.00024931,4]
[336580839,1724955034291,-500.0,0.00024931,4]
[336580840,1724955034301,-500.0,0.00024931,4]
[336580841,1724955034311,-500.0,0.00024931,4]
[336580842,1724955034320,-500.0,0.00024931,4]
[336580843,1724955034330,-500.0,0.00024931,4]
[336580844,1724955034339,-500.0,0.00024931,4]
[336580845,1724955034349,-231.18833579,0.00024931,4]
[336580846,1724955034387,-268.81166421,0.00024931,4]
[336580847,1724955034397,-215.50833579,0.00024931,4]
[336580848,1724955034410,-503.022718,0.00024931,4]
[336580849,1724955034425,-1353.12894621,0.00024931,4]
[336580850,1724955034434,-2071.66,0.00024931,4]
[336580851,1724955034443,-611.05375195,0.00024931,4]
[336580852,1724955034453,-2071.66,0.00024931,4]
[336580853,1724955034463,-2071.66,0.00024931,4]
[336580854,1724955034472,-2071.66,0.00024931,4]
[336580855,1724955034481,-2071.66,0.00024931,4]
[336580856,1724955034494,-2071.66,0.00024931,4]
[336580857,1724955034503,-2071.66,0.00024931,4]
[336580858,1724955034513,-2071.66,0.00024931,4]
[336580859,1724955034523,-2071.66,0.00024931,4]
[336580860,1724955034532,-2071.66,0.00024931,4]
[336580861,1724955034542,-2071.66,0.00024931,4]
[336580862,1724955034552,-2071.66,0.00024931,4]
[336580863,1724955034562,-2071.66,0.00024931,4]
[336580864,1724955034571,-2071.66,0.00024931,4]
[336580865,1724955034581,-2071.66,0.00024931,4]
[336580866,1724955034590,-2071.66,0.00024931,4]
[336580867,1724955034599,-2071.66,0.00024931,4]
[336580868,1724955034612,-2071.66,0.00024931,4]
[336580869,1724955034621,-2071.66,0.00024931,4]
[336580870,1724955034635,-2071.66,0.00024931,4]
[336580871,1724955034645,-2071.66,0.00024931,4]
[336580872,1724955034655,-2071.66,0.00024931,4]
[336580873,1724955034664,-2071.77726211,0.00024931,4]
[336580874,1724955034675,-150.0,0.00024931,4]
[336580875,1724955034684,-150.0,0.00024931,4]
[336580876,1724955034693,-500.0,0.00024931,4]
[336580877,1724955034703,-500.0,0.00024931,4]
[336580878,1724955034712,-1197.89,0.00024931,4]
[336580879,1724955034722,-1197.89,0.00024931,4]
[336580880,1724955034731,-1197.89,0.00024931,4]
[336580881,1724955034746,-1197.89,0.00024931,4]
[336580882,1724955034756,-1197.89,0.00024931,4]
[336580883,1724955034765,-1197.89,0.00024931,4]
[336580884,1724955034775,-1197.89,0.00024931,4]
[336580885,1724955034784,-500.0,0.00024931,4]
[336580886,1724955034794,-1197.89,0.00024931,4]
[336580887,1724955034804,-609.94,0.00024931,4]
[336580888,1724955034813,-1197.89,0.00024931,4]
[336580889,1724955034822,-1197.89,0.00024931,4]
[336580890,1724955034832,-1197.89,0.00024931,4]
[336580891,1724955034842,-1197.89,0.00024931,4]
[336580892,1724955034851,-1197.89,0.00024931,4]
[336580893,1724955034861,-1197.89,0.00024931,4]
[336580894,1724955034871,-1197.89,0.00024931,4]
[336580895,1724955034880,-500.0,0.00024931,4]
[336580896,1724955034889,-1197.89,0.00024931,4]
[336580897,1724955034898,-500.0,0.00024931,4]
[336580898,1724955034908,-1197.89,0.00024931,4]
[336580899,1724955034917,-1197.89,0.00024931,4]
[336580900,1724955034926,-1197.89,0.00024931,4]
[336580901,1724955034936,-1197.89,0.00024931,4]
[336580902,1724955034945,-1197.89,0.00024931,4]
[336580903,1724955034955,-1197.89,0.00024931,4]
[336580904,1724955034965,-1197.89,0.00024931,4]
[336580905,1724955034975,-1198.07470077,0.00024931,4]
[336580906,1724955034989,-500.0,0.00024931,4]
[336580907,1724955034999,-500.0,0.00024931,4]
[336580908,1724955035012,-470.0,0.00024931,4]
[336580909,1724955035022,-1009.48,0.00024931,4]
[336580910,1724955035032,-1009.48,0.00024931,4]
[336580911,1724955035041,-1009.48,0.00024931,4]
[336580912,1724955035051,-1009.48,0.00024931,4]
[336580913,1724955035061,-653.85,0.00024931,4]
[336580914,1724955035071,-1009.48,0.00024931,4]
[336580915,1724955035081,-653.85,0.00024931,4]
[336580916,1724955035090,-1009.48,0.00024931,4]
[336580917,1724955035100,-653.85,0.00024931,4]
[336580918,1724955035109,-1009.48,0.00024931,4]
[336580919,1724955035120,-653.85,0.00024931,4]
[336580920,1724955035129,-1009.48,0.00024931,4]
[336580921,1724955035139,-653.85,0.00024931,4]
[336580922,1724955035149,-1009.48,0.00024931,4]
[336580923,1724955035160,-653.85,0.00024931,4]
[336580924,1724955035169,-1009.48,0.00024931,4]
[336580925,1724955035179,-653.85,0.00024931,4]
[336580926,1724955035187,-1009.48,0.00024931,4]
[336580927,1724955035197,-1009.48,0.00024931,4]
[336580928,1724955035206,-653.85,0.00024931,4]
[336580929,1724955035216,-1009.48,0.00024931,4]
[336580930,1724955035225,-653.85,0.00024931,4]
[336580931,1724955035241,-1009.48,0.00024931,4]
[336580932,1724955035251,-653.85,0.00024931,4]
[336580933,1724955035261,-1009.48,0.00024931,4]
[336580934,1724955035270,-653.85,0.00024931,4]
[336580935,1724955035280,-1009.48,0.00024931,4]
[336580936,1724955035290,-653.85,0.00024931,4]
[336580937,1724955035299,-1009.48,0.00024931,4]
[336580938,1724955035310,-653.85,0.00024931,4]
[336580939,1724955035320,-1009.48,0.00024931,4]
[336580940,1724955035329,-653.85,0.00024931,4]
[336580941,1724955035339,-1009.48,0.00024931,4]
[336580942,1724955035348,-653.85,0.00024931,4]
[336580943,1724955035358,-1009.48,0.00024931,4]
[336580944,1724955035368,-653.85,0.00024931,4]
[336580945,1724955035377,-1009.48,0.00024931,4]
[336580946,1724955035387,-653.85,0.00024931,4]
[336580947,1724955035396,-1009.48,0.00024931,4]
[336580948,1724955035406,-653.85,0.00024931,4]
[336580949,1724955035416,-1009.48,0.00024931,4]
[336580950,1724955035425,-1009.49732503,0.00024931,4]
[336580951,1724955035435,-653.85,0.00024931,4]
[336580952,1724955035446,-653.85,0.00024931,4]
[336580953,1724955035456,-653.85,0.00024931,4]
[336580954,1724955035466,-653.85,0.00024931,4]
[336580955,1724955035476,-653.85,0.00024931,4]
[336580956,1724955035494,-654.07415922,0.00024931,4]
[336580957,1724955035506,-952.42,0.00024931,4]
[336580958,1724955035517,-952.42,0.00024931,4]
[336580959,1724955035528,-952.42,0.00024931,4]
[336580960,1724955035538,-952.42,0.00024931,4]
[336580961,1724955035547,-952.42,0.00024931,4]
[336580962,1724955035557,-952.42,0.00024931,4]
[336580963,1724955035568,-952.42,0.00024931,4]
[336580964,1724955035578,-952.42,0.00024931,4]
[336580965,1724955035589,-952.42,0.00024931,4]
[336580966,1724955035599,-952.42,0.00024931,4]
[336580967,1724955035612,-952.42,0.00024931,4]
[336580968,1724955035622,-952.42,0.00024931,4]
[336580969,1724955035631,-952.42,0.00024931,4]
[336580970,1724955035641,-952.42,0.00024931,4]
[336580971,1724955035652,-952.42,0.00024931,4]
[336580972,1724955035662,-952.42,0.00024931,4]
[336580973,1724955035672,-952.42,0.00024931,4]
[336580974,1724955035681,-952.42,0.00024931,4]
[336580975,1724955035690,-952.42,0.00024931,4]
[336580976,1724955035700,-952.42,0.00024931,4]
[336580977,1724955035710,-952.42,0.00024931,4]
[336580978,1724955035720,-2116.7,0.00024931,4]
[336580979,1724955035730,-952.42,0.00024931,4]
[336580980,1724955035745,-2116.7,0.00024931,4]
[336580981,1724955035754,-952.42,0.00024931,4]
[336580982,1724955035763,-2116.7,0.00024931,4]
[336580983,1724955035773,-952.56,0.00024931,4]
[336580984,1724955035783,-2116.7,0.00024931,4]
[336580985,1724955035793,-2116.7,0.00024931,4]
[336580986,1724955035802,-2116.7,0.00024931,4]
[336580987,1724955035812,-686.57786941,0.00024931,4]
[336580988,1724955035930,-1096.62478645,0.00024931,4]
[336580991,1724955038226,-6030.0,0.00024931,15]
[336580993,1724955038241,-10420.80222486,0.00024931,15]
[336580995,1724955038252,-7768.1384,0.00024931,15]
[336580997,1724955038262,-7146.2938,0.00024931,15]
[336580999,1724955038274,-17006.65070178,0.00024931,15]
[336581000,1724955038284,-285.00000001,0.00024931,15]
[336581001,1724955038298,-352.52727591,0.00024931,15]
[336581002,1724955038313,-358.48667185,0.00024931,15]
[336581003,1724955038337,-1204.35935839,0.00024931,15]
[336581004,1724955038450,-526.62329265,0.00024931,15]